bitfinex/quotes_BTCUSD_20260127
["timestamp","ask_amount","ask_price","bid_price","bid_amount"]
[1769516431854,0.02949686,88188.0,88164.0,0.11939373]
[1769516434674,0.11359647,88187.0,88164.0,0.11939373]
[1769516434879,0.00074793,88177.0,88164.0,0.11939373]
[1769516440736,0.02949686,88187.0,88164.0,0.11939373]
[1769516440919,0.11360349,88186.0,88164.0,0.11939373]
[1769516441158,0.1408517,88185.0,88164.0,0.11939373]
[1769516441334,0.11360349,88184.0,88164.0,0.11939373]
[1769516441500,0.1408517,88184.0,88164.0,0.11939373]
[1769516441828,0.11360349,88183.0,88164.0,0.11939373]
[1769516442930,0.11360349,88183.0,88166.0,0.11939373]
[1769516443133,0.11360349,88182.0,88168.0,0.11939373]
[1769516443277,0.11360349,88181.0,88170.0,0.11939373]
[1769516443482,0.02724821,88188.0,88171.0,0.01180176]
[1769516443704,0.02724821,88186.0,88171.0,0.01180176]
[1769516443901,0.11360753,88185.0,88171.0,0.01180176]
[1769516444143,0.11360753,88184.0,88171.0,0.01180176]
[1769516444381,0.11360753,88183.0,88171.0,0.01180176]
[1769516444582,0.11320753,88182.0,88171.0,0.14572594]
[1769516444792,0.02724821,88186.0,88171.0,0.14572594]
[1769516444998,0.00040009,88185.0,88171.0,0.14542594]
[1769516445201,0.00040009,88185.0,88172.0,0.01454259]
[1769516445395,0.00040009,88185.0,88173.0,0.01154702]
[1769516446261,0.02539949,88185.0,88173.0,0.01154702]
[1769516446464,0.02539949,88185.0,88173.0,0.01144702]
[1769516448710,0.0249994,88185.0,88173.0,0.00980931]
[1769516449065,0.0021378,88184.0,88173.0,0.00980931]
[1769516450177,0.0021378,88184.0,88173.0,0.02418387]
[1769516451925,0.0021378,88184.0,88173.0,0.00980931]
[1769516452244,0.0021378,88184.0,88172.0,0.0077716]
[1769516452738,0.0021378,88184.0,88172.0,0.00759214]
[1769516456574,0.11360613,88183.0,88172.0,0.00759214]
[1769516456781,0.11360613,88182.0,88172.0,0.00759214]
[1769516456919,0.0249994,88185.0,88172.0,0.13044516]
[1769516457122,0.11360613,88184.0,88172.0,0.13044516]
[1769516457323,0.11360613,88183.0,88172.0,0.13044516]
[1769516457621,0.11360613,88182.0,88172.0,0.12285302]
[1769516457958,0.00231726,88181.0,88172.0,0.13558819]
[1769516458335,0.00231726,88184.0,88172.0,0.13558819]
[1769516458661,0.1136063,88183.0,88172.0,0.13558819]
[1769516458826,0.11592356,88182.0,88172.0,0.13558819]
[1769516459051,0.1136063,88181.0,88172.0,0.13558819]
[1769516459246,0.00231726,88180.0,88173.0,0.0144584]
[1769516459495,0.00231726,88184.0,88173.0,0.0144584]
[1769516459697,0.11360638,88183.0,88173.0,0.0144584]
[1769516459995,0.11592364,88182.0,88173.0,0.0144584]
[1769516460147,0.00231726,88182.0,88173.0,0.0144584]
[1769516460338,0.00231726,88184.0,88173.0,0.0144584]
[1769516460532,0.11360633,88183.0,88173.0,0.0144584]
[1769516460733,0.0249994,88185.0,88173.0,0.0144584]
[1769516460734,0.11592359,88182.0,88173.0,0.0144584]
[1769516460931,0.00231726,88182.0,88173.0,0.0144584]
[1769516461134,0.00231726,88184.0,88173.0,0.13731142]
[1769516461334,0.1136063,88183.0,88174.0,0.01463072]
[1769516461679,0.11592356,88182.0,88169.0,0.0089958]
[1769516461881,0.00231726,88182.0,88169.0,0.0089958]
[1769516462083,0.1136064,88181.0,88168.0,0.12285302]
[1769516462269,0.00231726,88180.0,88168.0,0.12285302]
[1769516462451,0.00231726,88184.0,88168.0,0.12285302]
[1769516462652,0.11360755,88183.0,88169.0,0.01363463]
[1769516462866,0.11592481,88182.0,88169.0,0.13648765]
[1769516463070,0.11360755,88181.0,88169.0,0.13648765]
[1769516463278,0.00231726,88180.0,88169.0,0.13648765]
[1769516463526,0.0249994,88185.0,88169.0,0.13648765]
[1769516463527,0.00231726,88184.0,88169.0,0.13648765]
[1769516463728,0.11360754,88183.0,88170.0,0.0160847]
[1769516463927,0.1159248,88182.0,88170.0,0.0160847]
[1769516464130,0.11360754,88181.0,88170.0,0.0160847]
[1769516464326,0.00231726,88180.0,88171.0,0.12285302]
[1769516464539,0.00231726,88184.0,88171.0,0.12285302]
[1769516464713,0.11360772,88183.0,88172.0,0.01389377]
[1769516464908,0.11592498,88182.0,88172.0,0.01389377]
[1769516465113,0.11360772,88181.0,88172.0,0.01389377]
[1769516465447,0.00231726,88180.0,88172.0,0.01389377]
[1769516465607,0.00231726,88184.0,88172.0,0.01389377]
[1769516465811,0.1136085,88183.0,88171.0,0.12285302]
[1769516466006,0.11592576,88182.0,88171.0,0.12285302]
[1769516466235,0.1136085,88181.0,88171.0,0.12285302]
[1769516466433,0.00231726,88180.0,88171.0,0.12285302]
[1769516466846,0.00231726,88184.0,88171.0,0.12285302]
[1769516467045,0.11360931,88183.0,88171.0,0.12285302]
[1769516467224,0.11592657,88182.0,88172.0,0.0122853]
[1769516467426,0.0014099,88189.0,88173.0,0.14796434]
[1769516467783,0.09103084,88197.0,88173.0,0.14796434]
[1769516467784,0.09103084,88197.0,88178.0,0.02254347]
[1769516467785,0.0001458,88197.0,88178.0,0.02254347]
[1769516467990,0.0001458,88197.0,88179.0,0.12285302]
[1769516468399,0.0001458,88197.0,88171.0,0.01271073]
[1769516468400,0.0001458,88197.0,88182.0,0.02254347]
[1769516468592,0.0001458,88197.0,88171.0,0.01271073]
[1769516468594,0.0004,88200.0,88187.0,0.27060819]
[1769516468781,0.0004,88200.0,88183.0,0.02931517]
[1769516468782,0.0004,88200.0,88189.0,0.12285302]
[1769516469167,0.0004,88200.0,88180.0,0.28194863]
[1769516469168,0.0004,88200.0,88190.0,0.14539649]
[1769516469322,0.27100819,88200.0,88181.0,0.14539649]
[1769516469523,0.27100819,88200.0,88173.0,0.02254347]
[1769516469524,0.01,88181.0,88173.0,0.02254347]
[1769516469728,0.01,88181.0,88169.0,0.14783352]
[1769516469975,0.01,88181.0,88155.0,0.01134365]
[1769516469976,0.01,88181.0,88166.0,0.02254347]
[1769516470136,0.01,88181.0,88168.0,0.12285302]
[1769516470335,0.01,88181.0,88170.0,0.12285302]
[1769516470547,0.0249805,88186.0,88170.0,0.12285302]
[1769516470746,0.0249805,88186.0,88170.0,0.14539649]
[1769516476222,0.12018679,88190.0,88170.0,0.14539649]
[1769516476555,0.12078882,88189.0,88172.0,0.02254347]
[1769516477970,0.12078882,88189.0,88171.0,0.01455423]
[1769516477971,0.27060819,88190.0,88173.0,0.15989068]
[1769516478373,0.39139701,88190.0,88173.0,0.15989068]
[1769516479459,0.0001458,88197.0,88175.0,0.12285302]
[1769516479662,0.0001458,88197.0,88178.0,0.02254347]
[1769516479663,0.11348654,88196.0,88178.0,0.02254347]
[1769516479894,0.11348654,88195.0,88181.0,0.02254347]
[1769516480061,0.0001458,88197.0,88181.0,0.03838487]
[1769516480062,0.11348654,88194.0,88181.0,0.03838487]
[1769516480261,0.11348654,88193.0,88182.0,0.02254347]
[1769516480572,0.0001458,88197.0,88182.0,0.02254347]
[1769516480798,0.0001458,88197.0,88181.0,0.0158414]
[1769516480799,0.11348384,88196.0,88184.0,0.02254347]
[1769516480994,0.0001458,88197.0,88186.0,0.02254347]
[1769516481196,0.11347992,88196.0,88187.0,0.13739267]
[1769516481533,0.12093462,88206.0,88190.0,0.02465168]
[1769516481534,0.0001458,88206.0,88190.0,0.02465168]
[1769516481726,0.0001458,88206.0,88194.0,0.02465168]
[1769516481727,0.11346494,88205.0,88194.0,0.02465168]
[1769516481937,0.11346494,88204.0,88195.0,0.01454255]
[1769516482138,0.0001458,88206.0,88195.0,0.01454255]
[1769516482338,0.1134303,88205.0,88195.0,0.01454255]
[1769516482643,0.0001458,88206.0,88195.0,0.01454255]
[1769516482868,0.0001458,88206.0,88193.0,0.12077385]
[1769516482869,0.0001458,88206.0,88196.0,0.04064849]
[1769516482870,0.0001192,88206.0,88196.0,0.04064849]
[1769516483582,0.0001192,88206.0,88197.0,0.02465168]
[1769516485839,0.11596679,88205.0,88187.0,0.01453965]
[1769516486024,0.0001192,88206.0,88181.0,0.13715258]
[1769516486025,0.11596679,88197.0,88188.0,0.01516922]
[1769516486229,0.14073852,88197.0,88188.0,0.01516922]
[1769516486941,0.11596679,88197.0,88188.0,0.01516922]
[1769516489392,0.27048843,88200.0,88188.0,0.01516922]
[1769516489601,0.27048843,88200.0,88184.0,0.11719097]
[1769516490338,0.14073852,88202.0,88184.0,0.11719097]
[1769516490915,0.14073852,88202.0,88185.0,0.02350243]
[1769516491313,0.14073852,88202.0,88185.0,0.1406934]
[1769516495921,0.27048843,88200.0,88185.0,0.02350243]
[1769516496098,0.38645522,88200.0,88185.0,0.02350243]
[1769516496302,0.11596679,88200.0,88185.0,0.02350243]
[1769516499916,0.11596679,88200.0,88186.0,0.04111818]
[1769516500465,0.11596679,88200.0,88185.0,0.02350243]
[1769516501326,0.38645522,88200.0,88185.0,0.02350243]
[1769516502159,0.38645522,88200.0,88185.0,0.02268735]
[1769516503271,0.38645522,88200.0,88185.0,0.13987832]
[1769516505471,0.11596679,88200.0,88185.0,0.13987832]
[1769516505790,0.11596679,88200.0,88185.0,0.15386615]
[1769516507296,0.02477173,88202.0,88185.0,0.03667518]
[1769516507645,0.02477173,88202.0,88186.0,0.11719097]
[1769516509200,0.11349399,88201.0,88186.0,0.11719097]
[1769516509398,0.02477173,88202.0,88186.0,0.11719097]
[1769516509674,0.11349399,88201.0,88186.0,0.11719097]
[1769516509869,0.02477173,88202.0,88186.0,0.11719097]
[1769516510019,0.11349399,88201.0,88187.0,0.04103668]
[1769516510215,0.11352735,88200.0,88187.0,0.04103668]
[1769516510479,0.02477173,88202.0,88185.0,0.02268735]
[1769516510616,0.11352735,88201.0,88185.0,0.02268735]
[1769516510822,0.11352735,88200.0,88185.0,0.02268735]
[1769516511069,0.02477173,88202.0,88185.0,0.02268735]
[1769516511205,0.11352735,88201.0,88186.0,0.04103668]
[1769516511405,0.02477173,88202.0,88186.0,0.04103668]
[1769516511406,0.11352735,88200.0,88186.0,0.04103668]
[1769516511651,0.02477173,88202.0,88186.0,0.04103668]
[1769516511855,0.11355734,88201.0,88186.0,0.04103668]
[1769516512033,0.11355734,88200.0,88186.0,0.04103668]
[1769516512241,0.11355734,88199.0,88187.0,0.01918822]
[1769516512428,0.02477173,88202.0,88187.0,0.01918822]
[1769516512763,0.11355729,88201.0,88187.0,0.01918822]
[1769516512915,0.11355729,88200.0,88187.0,0.01918822]
[1769516513131,0.11355729,88199.0,88187.0,0.01918822]
[1769516513332,0.02477173,88202.0,88188.0,0.01455423]
[1769516513534,0.11356395,88201.0,88187.0,0.01918822]
[1769516513733,0.11356395,88200.0,88187.0,0.01918822]
[1769516514027,0.11356395,88199.0,88187.0,0.01918822]
[1769516514235,0.02477173,88202.0,88187.0,0.01918822]
[1769516514472,0.1135742,88201.0,88187.0,0.01918822]
[1769516514684,0.1135742,88200.0,88187.0,0.01918822]
[1769516514886,0.1135742,88199.0,88187.0,0.01918822]
[1769516515087,0.02477173,88202.0,88188.0,0.01590665]
[1769516515288,0.1135742,88201.0,88188.0,0.01590665]
[1769516515459,0.1135742,88200.0,88188.0,0.01590665]
[1769516515670,0.1135742,88199.0,88188.0,0.01590665]
[1769516515870,0.1135742,88198.0,88188.0,0.01590665]
[1769516516222,0.02477173,88202.0,88188.0,0.01590665]
[1769516516361,0.11359692,88201.0,88188.0,0.01590665]
[1769516516541,0.11359692,88200.0,88188.0,0.01590665]
[1769516516741,0.11359692,88199.0,88188.0,0.01590665]
[1769516516984,0.11359692,88198.0,88188.0,0.01590665]
[1769516517187,0.02477173,88202.0,88187.0,0.01918822]
[1769516517366,0.11359685,88201.0,88187.0,0.01918822]
[1769516517566,0.11359685,88200.0,88187.0,0.01918822]
[1769516517769,0.11359685,88199.0,88187.0,0.01918822]
[1769516517995,0.11359685,88198.0,88187.0,0.01918822]
[1769516518149,0.02477173,88202.0,88187.0,0.01918822]
[1769516518366,0.11359728,88201.0,88187.0,0.01918822]
[1769516518567,0.11359728,88200.0,88187.0,0.01918822]
[1769516518767,0.11359728,88199.0,88187.0,0.01918822]
[1769516518965,0.11359728,88198.0,88185.0,0.02268735]
[1769516519358,0.15131518,88202.0,88185.0,0.02268735]
[1769516519565,0.1135977,88201.0,88185.0,0.02268735]
[1769516519727,0.1135977,88200.0,88185.0,0.03686704]
[1769516519937,0.1135977,88199.0,88185.0,0.03572513]
[1769516520119,0.15131518,88202.0,88185.0,0.03572513]
[1769516520329,0.11359774,88201.0,88185.0,0.03572513]
[1769516520530,0.11359774,88200.0,88185.0,0.03572513]
[1769516520763,0.11359774,88199.0,88186.0,0.01548347]
[1769516521075,0.15131518,88202.0,88186.0,0.01548347]
[1769516521214,0.11359774,88201.0,88186.0,0.01548347]
[1769516521548,0.11359774,88200.0,88186.0,0.01548347]
[1769516521727,0.11359774,88199.0,88186.0,0.01548347]
[1769516521932,0.15131518,88202.0,88186.0,0.01548347]
[1769516522136,0.11359769,88201.0,88186.0,0.01548347]
[1769516522335,0.11359769,88200.0,88186.0,0.01548347]
[1769516522535,0.11359769,88199.0,88186.0,0.01548347]
[1769516522720,0.15131518,88202.0,88186.0,0.01548347]
[1769516522916,0.11359762,88201.0,88185.0,0.02154544]
[1769516523153,0.11359762,88200.0,88185.0,0.02154544]
[1769516523374,0.11359762,88199.0,88185.0,0.02154544]
[1769516523695,0.15131518,88202.0,88185.0,0.02154544]
[1769516523877,0.1135976,88201.0,88185.0,0.02154544]
[1769516524223,0.1135976,88200.0,88185.0,0.02154544]
[1769516524369,0.15131518,88202.0,88185.0,0.02154544]
[1769516524370,0.1135976,88199.0,88185.0,0.02154544]
[1769516524588,0.15131518,88202.0,88185.0,0.02154544]
[1769516524809,0.11359756,88201.0,88185.0,0.02154544]
[1769516524973,0.11359756,88200.0,88185.0,0.02154544]
[1769516525176,0.11359756,88199.0,88185.0,0.02154544]
[1769516525371,0.15131518,88202.0,88185.0,0.02154544]
[1769516525610,0.11359758,88201.0,88185.0,0.02154544]
[1769516525797,0.11359758,88200.0,88185.0,0.02154544]
[1769516526109,0.11359758,88199.0,88185.0,0.02154544]
[1769516526311,0.15131518,88202.0,88185.0,0.02154544]
[1769516526470,0.11359767,88201.0,88185.0,0.02154544]
[1769516526676,0.11359767,88200.0,88185.0,0.02154544]
[1769516526889,0.11359767,88199.0,88185.0,0.02154544]
[1769516527108,0.15131518,88202.0,88185.0,0.02154544]
[1769516527305,0.11359782,88201.0,88185.0,0.02154544]
[1769516527564,0.11359782,88200.0,88185.0,0.02154544]
[1769516527742,0.11359782,88199.0,88185.0,0.02154544]
[1769516527952,0.15131518,88202.0,88185.0,0.02154544]
[1769516528139,0.11359782,88201.0,88185.0,0.02154544]
[1769516528354,0.11359782,88200.0,88185.0,0.02154544]
[1769516528558,0.11359782,88199.0,88185.0,0.02154544]
[1769516528749,0.15131518,88202.0,88185.0,0.02154544]
[1769516528956,0.11359804,88201.0,88185.0,0.02154544]
[1769516529192,0.11359804,88200.0,88185.0,0.02154544]
[1769516529471,0.11359804,88199.0,88185.0,0.02154544]
[1769516529776,0.15131518,88202.0,88185.0,0.02154544]
[1769516529992,0.11359831,88201.0,88185.0,0.02154544]
[1769516530281,0.11359831,88200.0,88185.0,0.02154544]
[1769516530516,0.11359831,88200.0,88174.0,0.06804715]
[1769516530518,0.02352271,88214.0,88192.0,0.02292796]
[1769516530737,0.12654345,88213.0,88193.0,0.1311767]
[1769516530947,0.27048843,88210.0,88193.0,0.1311767]
[1769516531161,0.27048843,88210.0,88194.0,0.01541047]
[1769516531580,0.39703188,88210.0,88194.0,0.01541047]
[1769516535080,0.39703188,88210.0,88194.0,0.01511047]
[1769516536719,0.39703188,88210.0,88195.0,0.01214676]
[1769516537944,0.39703188,88210.0,88195.0,0.01784815]
[1769516538119,0.02352271,88212.0,88196.0,0.15953715]
[1769516538702,0.27048843,88210.0,88196.0,0.15953715]
[1769516539018,0.15006616,88212.0,88196.0,0.15953715]
[1769516539205,0.27048843,88210.0,88196.0,0.17738509]
[1769516539399,0.27048843,88210.0,88196.0,0.15953715]
[1769516539594,0.27048843,88210.0,88197.0,0.01595372]
[1769516540410,0.39703188,88210.0,88197.0,0.01595372]
[1769516543957,0.39703188,88210.0,88197.0,0.01562817]
[1769516544356,0.39720428,88210.0,88197.0,0.01562817]
[1769516545323,0.27066083,88210.0,88197.0,0.01562817]
[1769516545523,0.27063846,88210.0,88198.0,0.12838807]
[1769516546283,0.27063846,88210.0,88198.0,0.12806256]
[1769516546663,0.0001724,88210.0,88198.0,0.12806256]
[1769516546834,0.0001458,88215.0,88203.0,0.12838807]
[1769516547025,0.0001458,88215.0,88200.0,0.27046606]
[1769516547026,0.11346594,88214.0,88206.0,0.02371793]
[1769516547234,0.0001458,88215.0,88207.0,0.16007403]
[1769516547783,0.0001458,88215.0,88207.0,0.12838807]
[1769516547985,0.0001458,88215.0,88196.0,0.01883256]
[1769516548190,0.0001458,88215.0,88199.0,0.12838807]
[1769516548468,0.0001458,88215.0,88201.0,0.152106]
[1769516554242,0.0001458,88215.0,88201.0,0.15178048]
[1769516554381,0.0001458,88215.0,88202.0,0.05242917]
[1769516555175,0.0001458,88215.0,88202.0,0.18081724]
[1769516559252,0.0001458,88215.0,85930.0,0.05087157]
[1769516559253,0.0001458,88215.0,88185.0,0.12838807]
[1769516559254,0.02300747,88214.0,88185.0,0.12838807]
[1769516559456,0.0001458,88215.0,88178.0,0.12838807]
[1769516559457,0.02300747,88197.0,88178.0,0.12838807]
[1769516559639,0.02300747,88197.0,88179.0,0.01442502]
[1769516559842,0.13078803,88193.0,88167.0,0.0001458]
[1769516560043,0.27046606,88194.0,88170.0,0.14603211]
[1769516560044,0.02300747,88190.0,88170.0,0.14603211]
[1769516560266,0.02300747,88190.0,88171.0,0.01219943]
[1769516561505,0.13078803,88189.0,88171.0,0.01219943]
[1769516561736,0.02300747,88188.0,88171.0,0.01219943]
[1769516563841,0.02300747,88188.0,88170.0,0.12838807]
[1769516564977,0.02300747,88188.0,88174.0,0.12838807]
[1769516566565,0.01133735,88204.0,88174.0,0.12838807]
[1769516566566,0.11648,88213.0,88174.0,0.12838807]
[1769516566775,0.27046606,88190.0,88176.0,0.0003735]
[1769516569532,0.02300747,88189.0,88176.0,0.0003735]
[1769516569720,0.27046606,88200.0,88176.0,0.0003735]
[1769516569721,0.02300747,88184.0,88176.0,0.0003735]
[1769516569900,0.1537955,88183.0,88176.0,0.0003735]
[1769516573850,0.02300747,88188.0,88176.0,0.0003735]
[1769516575149,0.16201497,88188.0,88176.0,0.0003735]
[1769516580062,0.16201497,88188.0,88176.0,0.0002735]
[1769516580515,0.1390075,88188.0,88176.0,0.0002735]
[1769516580817,0.1639162,88188.0,88176.0,0.0002735]
[1769516582603,0.27046606,88190.0,88176.0,0.0002735]
[1769516582805,0.05670215,88180.0,88176.0,0.0002735]
[1769516583065,0.05670215,88180.0,88176.0,0.16159171]
[1769516583201,0.05670215,88180.0,88177.0,0.0239859]
[1769516583841,0.05670215,88180.0,88177.0,0.0242594]
[1769516584411,0.1390075,88193.0,88177.0,0.0242594]
[1769516584615,0.0567022,88180.0,88177.0,0.0242594]
[1769516586566,0.06359711,88202.0,88177.0,0.0242594]
[1769516586567,0.02336911,88208.0,88179.0,0.0239859]
[1769516586796,0.05669809,88186.0,88182.0,0.13733231]
[1769516586932,0.1390075,88204.0,88184.0,0.0239859]
[1769516587133,0.05669835,88186.0,88185.0,0.16131821]
[1769516589685,0.1390075,88204.0,88186.0,0.0239859]
[1769516589891,0.27046606,88200.0,88186.0,0.0239859]
[1769516590087,0.05669648,88189.0,88186.0,0.0239859]
[1769516590673,0.05669648,88189.0,88186.0,0.0139859]
[1769516592503,0.01987682,88202.0,88186.0,0.0139859]
[1769516592816,0.1390075,88188.0,88184.0,0.0002735]
[1769516593200,0.05669683,88189.0,88184.0,0.0002735]
[1769516600268,0.00202,88188.0,88181.0,0.01593568]
[1769516600765,0.00202,88188.0,88180.0,0.0239859]
[1769516603194,0.00202,88188.0,88180.0,0.02366034]
[1769516611878,0.00202,88188.0,88181.0,0.00979289]
[1769516612893,0.00202,88188.0,88180.0,0.02366034]
[1769516616877,0.1748728,88196.0,88181.0,0.00981601]
[1769516617162,0.05669786,88186.0,88182.0,0.0229128]
[1769516617327,0.05669786,88186.0,88183.0,0.01187951]
[1769516617527,0.05669786,88186.0,88182.0,0.0229128]
[1769516618374,0.01688379,88186.0,88182.0,0.0229128]
[1769516618688,0.01688379,88186.0,88182.0,0.02258777]
[1769516618902,0.01688379,88186.0,88176.0,0.19373284]
[1769516619102,0.01688379,88186.0,88176.0,0.17100704]
[1769516619295,0.01688379,88186.0,88176.0,0.14827969]
[1769516619442,0.01688379,88186.0,88176.0,0.12555234]
[1769516619640,0.01688379,88186.0,88177.0,0.0229128]
[1769516621380,0.01688379,88186.0,88177.0,0.01612868]
[1769516621524,0.01688379,88186.0,88172.0,0.0002001]
[1769516621842,0.01688379,88186.0,88170.0,0.13654663]
[1769516622175,0.01688379,88186.0,88171.0,0.0229128]
[1769516622394,0.01688379,88186.0,88172.0,0.1363448]
[1769516622688,0.01688379,88186.0,88172.0,0.1136048]
[1769516622854,0.01688379,88186.0,88172.0,0.09087641]
[1769516623059,0.01688379,88186.0,88172.0,0.09106083]
[1769516623263,0.01688379,88186.0,88172.0,0.06833245]
[1769516623462,0.01688379,88186.0,88172.0,0.04560406]
[1769516623643,0.01688379,88186.0,88172.0,0.02286432]
[1769516624006,0.01688379,88186.0,88172.0,0.00013593]
[1769516624183,0.01688379,88186.0,88171.0,0.13648125]
[1769516624398,0.01688379,88186.0,88171.0,0.11375261]
[1769516624595,0.01688379,88186.0,88171.0,0.09102397]
[1769516624798,0.01688379,88186.0,88166.0,0.000177]
[1769516624799,0.15949334,88184.0,88166.0,0.000177]
[1769516625103,0.02286294,88183.0,88167.0,0.09378]
[1769516625329,0.02286294,88183.0,88168.0,0.1590737]
[1769516625529,0.01188437,88185.0,88168.0,0.1590737]
[1769516625530,0.01188437,88185.0,88168.0,0.15925682]
[1769516625691,0.01188437,88185.0,88169.0,0.1590737]
[1769516625886,0.01188437,88185.0,88169.0,0.13634428]
[1769516626092,0.01188437,88185.0,88169.0,0.11361512]
[1769516626286,0.01188437,88185.0,88169.0,0.09088596]
[1769516626528,0.01188437,88185.0,88169.0,0.06815681]
[1769516626690,0.01188437,88185.0,88169.0,0.04542765]
[1769516626906,0.01188437,88185.0,88169.0,0.02268713]
[1769516627103,0.01188437,88185.0,88168.0,0.00014136]
[1769516627306,0.01188437,88185.0,88169.0,0.13634454]
[1769516627482,0.15949334,88184.0,88167.0,0.04831987]
[1769516627676,0.02286294,88189.0,88167.0,0.02559072]
[1769516627880,0.02286294,88187.0,88167.0,0.02559072]
[1769516628080,0.07956293,88184.0,88167.0,0.16193474]
[1769516628424,0.07956293,88184.0,88167.0,0.11647539]
[1769516628628,0.07956293,88184.0,88167.0,0.10689936]
[1769516628826,0.07956293,88184.0,88167.0,0.08415832]
[1769516629056,0.07956293,88184.0,88167.0,0.06142864]
[1769516629189,0.07956293,88184.0,88167.0,0.03869897]
[1769516629410,0.07956293,88184.0,88167.0,0.01596929]
[1769516629611,0.07956293,88184.0,88165.0,0.00401434]
[1769516629815,0.07956293,88184.0,88166.0,0.13634387]
[1769516630762,0.01315364,88183.0,88166.0,0.13634387]
[1769516634334,0.01315364,88183.0,88166.0,0.13569355]
[1769516638848,0.01315364,88183.0,88166.0,0.1414729]
[1769516639175,0.01315364,88183.0,88166.0,0.16609325]
[1769516643526,0.01315364,88183.0,88166.0,0.1657681]
[1769516643756,0.01315364,88183.0,88166.0,0.16544295]
[1769516645090,0.01315364,88183.0,88167.0,0.02462035]
[1769516647703,0.01315364,88183.0,88167.0,0.02429523]
[1769516652881,0.01315364,88183.0,88165.0,0.18407673]
[1769516652882,0.01315364,88183.0,88132.0,0.18372502]
[1769516652883,0.01134134,88173.0,88132.0,0.18372502]
[1769516653082,0.27057936,88150.0,88134.0,0.02462035]
[1769516653398,0.05669999,88155.0,88136.0,0.18407673]
[1769516653718,0.27057936,88150.0,88136.0,0.18407673]
[1769516653878,0.27057936,88150.0,88135.0,0.01317919]
[1769516654077,0.02349813,88152.0,88135.0,0.01317919]
[1769516654693,0.02349813,88152.0,88135.0,0.19725592]
[1769516657486,0.05669999,88155.0,88140.0,0.27057936]
[1769516657861,0.05669999,88155.0,88141.0,0.18407673]
[1769516658060,0.03602258,88155.0,88140.0,0.27057936]
[1769516658263,0.09069969,88179.0,88140.0,0.27057936]
[1769516658264,0.09069969,88179.0,88155.0,0.01]
[1769516658265,0.11652,88165.0,88155.0,0.01]
[1769516658463,0.11652,88165.0,88156.0,0.18407673]
[1769516658649,0.05672923,88167.0,88156.0,0.18407673]
[1769516660187,0.05672923,88167.0,88157.0,0.00113426]
[1769516660945,0.05672923,88167.0,88157.0,0.18521099]
[1769516661395,0.0002052,88172.0,88160.0,0.27057936]
[1769516661697,0.0002052,88172.0,88157.0,0.18407673]
[1769516661698,0.05670841,88170.0,88157.0,0.18407673]
[1769516661895,0.05670841,88170.0,88160.0,0.27057936]
[1769516662054,0.05670841,88170.0,88157.0,0.18407673]
[1769516663191,0.01047587,88170.0,88160.0,0.27057936]
[1769516663389,0.01047587,88170.0,88161.0,0.21326694]
[1769516663597,0.01047587,88170.0,88162.0,0.00042883]
[1769516663922,0.27057936,88200.0,88168.0,0.21326694]
[1769516663924,0.05670066,88183.0,88168.0,0.21326694]
[1769516665299,0.05670066,88183.0,88170.0,0.27057936]
[1769516667659,0.05670066,88183.0,88170.0,0.27055702]
[1769516669055,0.05670066,88183.0,88171.0,0.19237428]
[1769516669475,0.05670066,88183.0,88173.0,0.19237428]
[1769516674306,0.0002699,88191.0,88176.0,0.06804539]
[1769516674538,0.0002699,88191.0,88180.0,0.4629313]
[1769516674684,0.0002699,88191.0,88181.0,0.19237428]
[1769516674886,0.0002699,88191.0,88181.0,0.19179106]
[1769516675978,0.0002699,88191.0,88180.0,0.29316311]
[1769516678039,0.0002699,88191.0,88180.0,0.27055702]
[1769516679365,0.0002699,88191.0,88181.0,0.19237428]
[1769516680249,0.0002699,88191.0,88182.0,0.00044542]
[1769516680451,0.05669315,88194.0,88180.0,0.27055702]
[1769516680452,0.00718198,88194.0,88186.0,0.01133966]
[1769516680879,0.00718198,88194.0,88186.0,0.19237428]
[1769516681087,0.00718198,88194.0,88186.0,0.20371394]
[1769516681263,0.00718198,88194.0,88186.0,0.19237428]
[1769516682734,0.00718198,88194.0,88186.0,0.20371394]
[1769516683006,0.00718198,88194.0,88187.0,0.19237428]
[1769516683224,0.00718198,88194.0,88187.0,0.19281967]
[1769516684610,0.0320746,88204.0,88187.0,0.19281967]
[1769516685496,0.0320746,88204.0,88187.0,0.2041592]
[1769516685760,0.0320746,88204.0,88190.0,0.27055702]
[1769516685950,0.0320746,88204.0,88191.0,0.00044536]
[1769516686160,0.0320746,88204.0,88190.0,0.26295985]
[1769516686323,0.0320746,88204.0,88190.0,0.24023612]
[1769516686512,0.0320746,88204.0,88190.0,0.21751238]
[1769516686713,0.0320746,88204.0,88190.0,0.19478865]
[1769516686932,0.0320746,88204.0,88190.0,0.17206491]
[1769516687154,0.0320746,88204.0,88190.0,0.14934118]
[1769516687347,0.0320746,88204.0,88190.0,0.12661744]
[1769516687552,0.00718198,88204.0,88190.0,0.10389371]
[1769516687845,0.00718198,88204.0,88190.0,0.08116997]
[1769516687846,0.02489262,88203.0,88190.0,0.08116997]
[1769516687997,0.02489262,88203.0,88190.0,0.06426351]
[1769516690316,0.0247299,88203.0,88190.0,0.06426351]
[1769516690538,0.0247299,88203.0,88191.0,0.00113374]
[1769516692657,0.00718198,88204.0,88191.0,0.19237428]
[1769516693324,0.00718198,88204.0,88193.0,0.0772192]
[1769516695917,0.00718198,88204.0,88193.0,0.28996997]
[1769516697238,0.00718198,88204.0,88193.0,0.0772192]
[1769516697544,0.00718198,88204.0,88194.0,0.00113523]
[1769516702294,0.00718198,88204.0,88191.0,0.00113523]
[1769516702456,0.02400547,88192.0,88181.0,0.0680415]
[1769516702664,0.02400547,88192.0,88185.0,0.0772192]
[1769516704405,0.00718198,88204.0,88186.0,0.01133966]
[1769516704625,0.1134353,88203.0,88187.0,0.21275077]
[1769516704813,0.1134353,88202.0,88190.0,0.27055702]
[1769516705010,0.1134353,88201.0,88190.0,0.27055702]
[1769516705320,0.02292941,88203.0,88187.0,0.21275077]
[1769516705465,0.11344411,88202.0,88187.0,0.21275077]
[1769516705665,0.11344411,88201.0,88187.0,0.21275077]
[1769516705869,0.02292941,88203.0,88187.0,0.21275077]
[1769516706119,0.11344411,88202.0,88187.0,0.21275077]
[1769516706346,0.11344411,88201.0,88187.0,0.21275077]
[1769516706487,0.02292941,88203.0,88187.0,0.21275077]
[1769516706837,0.11345442,88202.0,88190.0,0.27055702]
[1769516706968,0.11345316,88201.0,88189.0,0.22409005]
[1769516707176,0.00718198,88204.0,88189.0,0.28078628]
[1769516707432,0.11346117,88203.0,88189.0,0.28078628]
[1769516707608,0.00718198,88204.0,88190.0,0.01133915]
[1769516707930,0.13638894,88203.0,88187.0,0.06803701]
[1769516708228,0.02292941,88203.0,88187.0,0.06803701]
[1769516708532,0.02882975,88204.0,88185.0,0.08855899]
[1769516708533,0.20401444,88200.0,88185.0,0.08855899]
[1769516708731,0.02882975,88204.0,88185.0,0.08855899]
[1769516708732,0.20401444,88198.0,88185.0,0.0772192]
[1769516708930,0.02292941,88197.0,88185.0,0.0772192]
[1769516709142,0.02292941,88197.0,88178.0,0.21275077]
[1769516709338,0.20401444,88189.0,88171.0,0.01134159]
[1769516709497,0.02292941,88186.0,88173.0,0.01134134]